bitfinex/quotes_SOLUSD_20240729
["timestamp","ask_amount","ask_price","bid_price","bid_amount"]
[1722269377604,5.3367,187.38,187.33,1.06743605]
[1722269377804,5.3367,187.38,187.32,16.0956]
[1722269379126,5.3367,187.38,187.33,1.06743598]
[1722269379325,5.3367,187.38,187.32,16.0956]
[1722269380026,5.3365,187.39,187.32,16.0956]
[1722269380198,27.18,187.41,187.32,16.0956]
[1722269380397,0.17,187.4,187.32,16.0956]
[1722269382724,27.18,187.35,187.27,16.6576]
[1722269383233,27.18,187.35,187.28,5.3393]
[1722269383407,27.18,187.35,187.27,16.6576]
[1722269383726,27.18,187.35,187.29,5.3392]
[1722269385013,32.5176,187.35,187.27,21.9972]
[1722269385208,5.3378,187.34,187.28,5.3395]
[1722269385406,32.5176,187.35,187.28,5.3395]
[1722269386222,32.5177,187.35,187.27,21.9972]
[1722269386734,5.338,187.34,187.27,21.9972]
[1722269387232,5.3382,187.33,187.27,16.6576]
[1722269387732,5.3379,187.34,187.27,21.9974]
[1722269388228,5.3386,187.32,187.27,16.6576]
[1722269388532,27.18,187.35,187.27,16.6576]
[1722269388831,5.3384,187.33,187.27,16.6576]
[1722269390016,5.3384,187.32,187.25,5.3404]
[1722269390234,5.3384,187.32,187.23,29.3988]
[1722269390235,27.18,187.32,187.23,29.3988]
[1722269390637,5.3389,187.31,187.24,5.3406]
[1722269391014,32.5184,187.32,187.23,29.3988]
[1722269391219,27.18,187.32,187.26,18.6904]
[1722269391535,27.18,187.32,187.26,13.3503]
[1722269391737,27.18,187.32,187.24,6.40847698]
[1722269391916,5.3387,187.31,187.24,6.40857698]
[1722269392116,5.3384,187.33,187.24,1.06787698]
[1722269392335,33.7898,187.39,187.27,13.3496]
[1722269392550,5.3378,187.35,187.28,5.3395]
[1722269392736,5.3378,187.35,187.27,13.3496]
[1722269392913,5.3378,187.35,187.27,18.6894]
[1722269393329,5.3378,187.35,187.27,13.3496]
[1722269393330,5.3376,187.35,187.27,13.3496]
[1722269393632,5.3376,187.35,187.28,5.3395]
[1722269393940,5.3375,187.36,187.27,13.3496]
[1722269394110,5.3375,187.36,187.29,5.3392]
[1722269394521,5.3376,187.35,187.27,13.3496]
[1722269394727,5.3376,187.35,187.28,1.06770488]
[1722269394935,5.3379,187.34,187.28,1.06770488]
[1722269395325,5.3385,187.32,187.24,58.3516]
[1722269395534,5.3381,187.33,187.26,5.34]
[1722269395740,27.18,187.36,187.27,1.06770461]
[1722269395934,27.18,187.36,187.27,46.06770461]
[1722269396128,5.3376,187.35,187.28,5.3395]
[1722269396329,5.55557688,187.4,187.3,15.6502]
[1722269396532,5.3375,187.36,187.3,15.6502]
[1722269396740,27.18,187.38,187.27,13.3496]
[1722269396952,27.18,187.38,187.28,45.0]
[1722269397633,27.18,187.38,187.27,13.3496]
[1722269397837,13.3426,187.37,187.25,15.6502]
[1722269398022,5.3382,187.33,187.26,1.06777339]
[1722269398343,5.3386,187.32,187.27,1.06777218]
[1722269398643,5.3391,187.3,187.27,1.06777218]
[1722269398937,13.3445,187.35,187.26,1.06779626]
[1722269398938,5.3386,187.32,187.26,1.06779626]
[1722269399150,5.3382,187.33,187.27,1.06777402]
[1722269399948,5.3385,187.32,187.27,1.06777402]
[1722269400442,27.18,187.35,187.26,1.06778266]
[1722269400443,5.3382,187.33,187.26,1.06778266]
[1722269400749,5.3379,187.34,187.25,29.0006]
[1722269401064,5.3379,187.34,187.27,5.3398]
[1722269401219,5.3379,187.34,187.28,1.06770432]
[1722269401538,5.3381,187.33,187.26,50.3401]
[1722269401745,5.3387,187.31,187.25,29.0006]
[1722269401951,5.3384,187.32,187.26,1.06785578]
[1722269402246,5.3384,187.32,187.25,29.0006]
[1722269402414,5.3384,187.32,187.26,1.0678214]
[1722269402614,5.3384,187.32,187.27,1.06781655]
[1722269403433,0.17,187.37,187.26,5.3401]
[1722269403745,0.17,187.37,187.25,29.0006]
[1722269403746,5.3377,187.35,187.28,5.3395]
[1722269403951,5.3377,187.35,187.27,1.06777429]
[1722269403952,5.3379,187.34,187.27,50.3398]
[1722269404150,27.18,187.38,187.28,5.3395]
[1722269404151,5.3375,187.36,187.28,5.3395]
[1722269404358,27.18,187.38,187.29,50.3393]
[1722269404645,5.337,187.37,187.3,1.06752752]
[1722269404849,27.18,187.38,187.3,6.40632752]
[1722269405650,27.18,187.38,187.3,5.3388]
[1722269405823,27.18,187.38,187.29,50.3393]
[1722269406330,5.3376,187.35,187.29,45.0]
[1722269406529,5.3376,187.35,187.3,1.06757466]
[1722269407244,5.3371,187.37,187.29,5.3392]
[1722269407753,5.3374,187.36,187.29,5.3392]
[1722269408252,5.3374,187.36,187.28,50.3395]
[1722269409452,5.3368,187.38,187.31,5.3386]
[1722269409638,5.3368,187.38,187.32,1.0674193]
[1722269409838,5.3368,187.38,187.33,1.0674193]
[1722269410039,42.61005914,187.41,187.28,50.3393]
[1722269410358,5.55512973,187.4,187.28,50.3393]
[1722269410524,42.61005914,187.41,187.3,5.339]
[1722269410926,0.17,187.4,187.29,18.6873]
[1722269411125,5.3378,187.35,187.3,45.0]
[1722269411349,42.61005914,187.41,187.28,46.06749767]
[1722269411558,42.61005914,187.41,187.28,45.0]
[1722269411559,5.3371,187.37,187.28,45.0]
[1722269411850,5.3371,187.37,187.3,5.339]
[1722269412039,5.3371,187.37,187.31,45.0]
[1722269414041,5.3371,187.37,187.3,45.0]
[1722269414441,5.3371,187.37,187.3,50.3389]
[1722269414843,5.3368,187.38,187.31,5.3385]
[1722269415070,5.3368,187.38,187.32,45.0]
[1722269415237,5.3371,187.37,187.32,45.0]
[1722269415435,29.27035914,187.41,187.32,45.0]
[1722269415436,5.3367,187.38,187.32,45.0]
[1722269415640,5.3365,187.39,187.32,5.3383]
[1722269415941,5.3368,187.38,187.31,50.3385]
[1722269416141,5.3372,187.37,187.31,45.0]
[1722269417053,5.337,187.37,187.31,45.0]
[1722269417238,13.57,187.34,187.31,45.0]
[1722269417433,13.57,187.34,187.27,21.06742254]
[1722269417434,13.57,187.34,187.27,18.6891]
[1722269418155,13.57,187.32,187.28,5.3395]
[1722269418360,13.57,187.34,187.28,5.3395]
[1722269418663,13.57,187.34,187.28,6.4070779]
[1722269418832,13.57,187.34,187.29,45.0]
[1722269419028,13.57,187.34,187.3,1.06757792]
[1722269419633,13.57,187.34,187.31,5.3385]
[1722269419838,13.57,187.34,187.3,19.75377792]
[1722269420063,13.57,187.34,187.3,13.3473]
[1722269420256,13.57,187.34,187.29,45.0]
[1722269420661,13.57,187.32,187.28,45.0]
[1722269421346,13.57,187.32,187.27,13.3496]
[1722269421544,13.57,187.32,187.27,18.6894]
[1722269421743,5.3376,187.35,187.27,18.6892]
[1722269421949,13.57,187.32,187.28,45.0]
[1722269422761,13.57,187.32,187.28,50.3395]
[1722269423067,5.3369,187.38,187.3,5.3389]
[1722269423247,13.57,187.36,187.31,6.40610599]
[1722269423451,13.57,187.37,187.31,46.06750599]
[1722269423638,13.57,187.37,187.33,5.3381]
[1722269424557,13.57,187.37,187.31,45.0]
[1722269424935,13.57,187.38,187.34,5.3378]
[1722269425256,11.5988,187.43,187.35,6.40471046]
[1722269425474,6.2633,187.43,187.36,1.06719189]
[1722269425635,6.2633,187.43,187.35,50.3374]
[1722269425837,5.3359,187.41,187.35,45.0]
[1722269426139,5.3356,187.42,187.35,5.3375]
[1722269426347,5.3356,187.42,187.34,45.0]
[1722269426348,5.3359,187.41,187.36,1.06720545]
[1722269426550,33.3933,187.43,187.35,1.06720626]
[1722269426765,5.3364,187.39,187.34,1.06737826]
[1722269427139,5.336,187.41,187.34,1.06737826]
[1722269427337,5.336,187.41,187.34,45.0]
[1722269427862,5.3365,187.39,187.33,16.2509]
[1722269428039,5.3368,187.38,187.33,16.2509]
[1722269428237,33.3933,187.43,187.33,16.2509]
[1722269428238,5.3365,187.39,187.33,16.2509]
[1722269428534,5.3365,187.39,187.34,1.06737664]
[1722269429156,5.3365,187.39,187.33,16.2509]
[1722269429342,5.3367,187.39,187.33,16.2509]
[1722269429546,5.3373,187.36,187.29,5.3391]
[1722269429745,5.3376,187.35,187.28,29.4858]
[1722269430086,5.3379,187.34,187.28,16.1374]
[1722269430267,27.13,187.37,187.28,16.1374]
[1722269430268,5.3376,187.35,187.28,21.4769]
[1722269430757,27.13,187.4,187.29,1.06762244]
[1722269430956,5.3372,187.37,187.3,5.3389]
[1722269431267,5.3373,187.36,187.29,5.3392]
[1722269431649,5.3379,187.34,187.28,29.4859]
[1722269431970,5.3379,187.34,187.29,45.0]
[1722269432272,5.3376,187.35,187.29,45.0]
[1722269432844,5.3376,187.35,187.28,29.4859]
[1722269433347,5.3379,187.34,187.28,29.4859]
[1722269433577,5.3376,187.35,187.28,34.8254]
[1722269434767,5.3376,187.35,187.28,13.3485]
[1722269434957,5.3382,187.33,187.26,5.3399]
[1722269435162,27.13,187.37,187.27,45.0]
[1722269435359,27.13,187.37,187.26,45.0]
[1722269435661,40.4726,187.37,187.26,45.0]
[1722269435865,0.17,187.36,187.26,45.0]
[1722269436440,5.3382,187.33,187.26,50.3399]
[1722269436858,5.3382,187.33,187.26,50.3401]
[1722269437765,27.13,187.37,187.28,13.3488]
[1722269438270,5.3374,187.36,187.29,50.339]
[1722269438645,32.467,187.37,187.3,5.339]
[1722269438853,5.3374,187.36,187.29,45.0]
[1722269439169,5.3376,187.35,187.29,45.0]
[1722269439666,5.3373,187.36,187.29,50.3392]
[1722269440254,32.467,187.37,187.3,5.3389]
[1722269441865,5.3365,187.39,187.32,5.3384]
[1722269442047,5.3365,187.39,187.33,1.06740029]
[1722269442254,27.13,187.4,187.33,6.40540029]
[1722269442573,32.4664,187.4,187.33,6.40540029]
[1722269442947,5.3364,187.39,187.33,1.06740029]
[1722269443144,27.13,187.4,187.33,1.06740029]
[1722269443379,5.3361,187.4,187.33,51.40550029]
[1722269443555,5.3358,187.42,187.33,45.0]
[1722269443876,35.48607503,187.43,187.35,5.3375]
[1722269443877,29.22277503,187.43,187.35,5.3375]
[1722269444247,47.0379,187.47,187.36,6.40450507]
[1722269444447,49.11084123,187.47,187.36,6.40450507]
[1722269444654,5.3356,187.42,187.36,1.06720507]
[1722269445250,49.11084123,187.47,187.33,45.0]
[1722269445455,5.3369,187.38,187.31,34.6894]
[1722269446063,27.13,187.42,187.33,5.3379]
[1722269446064,32.4658,187.42,187.33,5.3379]
[1722269446267,32.4658,187.42,187.34,1.06730776]
[1722269446268,27.13,187.42,187.34,1.06730776]
[1722269446458,5.336,187.41,187.34,1.06730776]
[1722269446656,32.4656,187.42,187.35,5.3375]
[1722269446855,5.3364,187.39,187.32,5.3384]
[1722269447258,5.3364,187.39,187.31,16.0044]
[1722269447259,27.13,187.39,187.31,16.0044]
[1722269447456,33.2212,187.39,187.26,16.5461]
[1722269447655,33.2212,187.39,187.27,13.349]
[1722269447871,5.337,187.38,187.3,5.3387]
[1722269448066,5.337,187.37,187.31,1.06743495]
[1722269448272,33.2212,187.39,187.31,5.3386]
[1722269448273,38.5579,187.39,187.31,5.3386]
[1722269448456,27.13,187.39,187.31,5.3386]
[1722269448775,27.13,187.39,187.32,45.0]
[1722269448776,5.3367,187.38,187.32,45.0]
[1722269448985,27.13,187.39,187.32,45.0]
[1722269449384,5.3367,187.38,187.32,45.0]
[1722269449570,5.3367,187.38,187.31,45.0]
[1722269449772,5.3367,187.38,187.3,45.0]
[1722269450180,5.3367,187.38,187.3,50.339]
[1722269450365,5.3367,187.38,187.31,5.3386]
[1722269450566,5.3367,187.38,187.32,45.0]
[1722269451485,32.4665,187.39,187.32,45.0]
[1722269452369,5.3367,187.38,187.32,45.0]
[1722269452573,27.13,187.39,187.32,50.3384]
[1722269453362,2.13830854,187.42,187.34,5.3378]
[1722269453569,13.57,187.39,187.35,46.06716146]
[1722269453777,13.57,187.39,187.36,1.06723833]
[1722269453983,13.57,187.4,187.36,1.06723833]
[1722269455074,13.57,187.4,187.36,6.40443833]
[1722269455284,13.57,187.4,187.37,45.0]
[1722269455470,13.57,187.4,187.38,1.06714757]
[1722269455669,13.57,187.41,187.38,1.06714757]
[1722269456194,5.3348,187.45,187.38,1.06714757]
[1722269456373,13.57,187.42,187.38,6.40374757]
[1722269456579,13.57,187.42,187.39,45.0]
[1722269456780,13.57,187.42,187.37,45.17]
[1722269456985,13.57,187.42,187.38,0.17]
[1722269457191,5.3345,187.46,187.38,0.17]
[1722269457691,5.3345,187.46,187.38,5.5066]
[1722269457893,5.3345,187.46,187.39,50.3364]
[1722269458184,29.19899745,187.48,187.39,45.0]
[1722269458884,5.3353,187.44,187.39,45.0]
[1722269459087,5.3347,187.45,187.38,50.3367]
[1722269459885,29.19899745,187.48,187.39,5.3363]
[1722269460190,5.3347,187.45,187.4,45.0]
[1722269460387,29.19899745,187.48,187.38,45.0]
[1722269460567,5.3357,187.42,187.34,5.3376]
[1722269460975,27.12,187.42,187.33,29.7752]
[1722269461171,27.12,187.42,187.33,35.1133]
[1722269461376,27.12,187.42,187.34,5.3378]
[1722269462396,5.3364,187.39,187.33,29.7752]
[1722269462578,5.3364,187.39,187.34,45.0]
[1722269462784,27.12,187.42,187.34,45.0]
[1722269463376,5.3361,187.4,187.34,45.0]
[1722269463577,27.12,187.42,187.34,45.0]
[1722269463778,5.3359,187.41,187.34,50.3376]
[1722269464282,5.337,187.37,187.33,16.4299]
[1722269464585,40.459,187.42,187.29,29.2158]
[1722269464586,27.12,187.39,187.29,29.2158]
[1722269464979,27.12,187.39,187.33,5.338]
[1722269465178,27.12,187.39,187.32,13.346]
[1722269465403,6.181,187.41,187.32,13.346]
[1722269465775,5.3369,187.38,187.32,13.346]
[1722269466107,6.181,187.41,187.3,5.339]
[1722269466108,5.3371,187.37,187.3,5.339]
[1722269466274,5.3371,187.37,187.31,45.0]
[1722269466676,27.12,187.39,187.31,45.0]
[1722269466895,5.3373,187.36,187.3,45.0]
[1722269467308,5.3377,187.35,187.29,29.2162]
[1722269467626,27.12,187.39,187.29,29.2162]
[1722269467778,5.3368,187.38,187.31,5.3387]
[1722269468100,27.12,187.39,187.32,5.3382]
[1722269468278,27.12,187.39,187.33,5.3381]
[1722269468674,5.3367,187.38,187.32,5.3384]
[1722269468892,5.337,187.37,187.31,13.3463]
[1722269469212,32.4564,187.39,187.32,50.3383]
[1722269470002,5.3367,187.38,187.32,45.0]
[1722269470218,5.3373,187.36,187.29,21.2072]
[1722269470511,5.3376,187.35,187.3,45.0]
[1722269471203,5.3383,187.33,187.29,15.8682]
[1722269471403,5.3383,187.33,187.25,22.2481]
[1722269471613,5.3378,187.35,187.26,13.3497]
[1722269471985,27.12,187.36,187.27,1.06759472]
[1722269472202,5.3384,187.32,187.26,13.3497]
[1722269472715,5.3388,187.31,187.27,1.06775209]
[1722269472887,5.339,187.3,187.25,15.6408]
[1722269473210,5.3387,187.31,187.25,15.6408]
[1722269473512,5.3387,187.31,187.26,1.06784113]
[1722269473893,5.3391,187.3,187.25,16.70863996]
[1722269474203,0.17,187.35,187.25,16.70863996]
[1722269474408,5.3389,187.31,187.25,16.70863996]
[1722269474798,5.3384,187.32,187.25,22.04903996]
[1722269475609,5.3387,187.31,187.25,22.04903996]
[1722269475995,5.3384,187.32,187.25,22.04903996]
[1722269476915,5.3387,187.31,187.25,16.70863996]
[1722269477100,5.3387,187.31,187.26,1.0678734]
[1722269477296,5.3387,187.31,187.27,1.06788653]
[1722269477526,13.58,187.28,187.27,1.06788653]
[1722269477809,5.3384,187.33,187.26,1.06788797]
[1722269478008,13.58,187.28,187.26,1.06779948]
[1722269478216,13.58,187.28,187.25,15.6408]
[1722269478606,47.59838443,187.36,187.25,15.6408]
[1722269478803,13.58,187.29,187.26,45.0]
[1722269479112,13.58,187.29,187.25,20.9812]
[1722269479415,13.58,187.29,187.26,50.3401]
[1722269479910,13.58,187.29,187.27,5.3397]
[1722269480117,13.58,187.29,187.26,58.3503]
[1722269481717,13.58,187.29,187.26,45.0]
[1722269482018,13.58,187.29,187.25,15.6408]
[1722269482219,13.58,187.27,187.25,15.6408]
[1722269483223,13.58,187.27,187.21,16.6606]
[1722269483523,13.58,187.27,187.22,45.0]
[1722269484017,13.58,187.27,187.24,5.3407]
[1722269484218,13.58,187.27,187.25,1.06793038]
[1722269484422,13.58,187.27,187.25,6.40833038]
[1722269485116,13.58,187.27,187.25,1.06793038]
[1722269485307,13.58,187.27,187.24,45.0]
[1722269485491,13.58,187.27,187.23,13.3519]
[1722269487628,13.58,187.27,187.23,18.6928]
[1722269488712,13.58,187.27,187.23,13.3519]
[1722269489529,13.58,187.25,187.21,16.6606]
[1722269489731,13.58,187.23,187.22,45.0]
[1722269490812,13.58,187.23,187.22,5.3413]
[1722269491007,13.58,187.23,187.21,22.0021]
[1722269491321,13.58,187.23,187.21,16.6606]
[1722269492352,18.9215,187.22,187.16,16.1547]
[1722269492634,6.6052,187.26,187.12,13.3603]
[1722269492635,13.58,187.17,187.12,13.3603]
[1722269492830,13.58,187.13,187.12,18.7043]
[1722269493038,13.58,187.13,187.12,13.3603]
[1722269493209,13.58,187.13,187.11,16.1547]
[1722269493608,13.58,187.13,187.09,5.345]
[1722269493840,13.58,187.11,187.08,18.7081]
[1722269494040,13.58,187.11,187.09,6.41380949]
[1722269494542,13.58,187.11,187.07,5.3455]
[1722269494844,13.58,187.08,187.07,1.06897249]
[1722269495026,13.58,187.08,187.04,14.1411583]
[1722269495027,13.58,187.08,187.04,19.4875583]
[1722269495233,13.58,187.06,187.04,0.7757583]
[1722269495538,13.58,187.05,187.04,0.7757583]
[1722269497231,27.23,187.09,187.04,0.7757583]
[1722269497729,32.575,187.09,187.04,0.7757583]
[1722269498348,5.3444,187.11,187.04,6.1220583]
[1722269498735,52.8095,187.13,187.06,5.3456]
[1722269498931,37.4539,187.13,187.05,18.7108]
[1722269499137,37.4539,187.13,187.05,13.3649]
[1722269499432,2.09842441,187.14,187.07,5.3455]
[1722269499647,5.3436,187.14,187.07,5.3455]
[1722269499841,27.23,187.15,187.08,13.3632]
[1722269500041,27.23,187.15,187.04,1.84473088]
[1722269500042,21.1151,187.18,187.06,15.3355]
[1722269500242,5.3428,187.17,187.11,13.361]
[1722269500547,6.0138,187.18,187.08,18.7082]
[1722269500548,5.343,187.16,187.08,18.7082]
[1722269500740,5.3433,187.15,187.08,18.7082]
[1722269501447,6.0138,187.18,187.08,13.3632]
[1722269501847,5.3427,187.17,187.09,5.3447]
[1722269502144,5.3427,187.17,187.1,5.3447]
[1722269502545,5.3427,187.17,187.09,5.3449]
[1722269502751,5.3427,187.17,187.1,5.3447]
[1722269503853,34.66789203,187.19,187.11,14.42986884]
[1722269504051,5.3418,187.21,187.14,5.3434]
[1722269504354,48.9233,187.22,187.12,5.3439]
[1722269504355,5.3419,187.2,187.12,5.3439]
[1722269504535,5.3419,187.2,187.13,45.0]
[1722269504730,33.4367,187.22,187.14,13.3588]
[1722269505451,5.3407,187.25,187.18,5.3422]
[1722269505663,5.3407,187.25,187.19,1.06825546]
[1722269505949,5.3407,187.24,187.17,18.6992]
[1722269506151,5.341,187.23,187.17,13.3565]
[1722269506355,5.3406,187.25,187.17,13.3565]
[1722269506653,5.3406,187.25,187.18,5.3424]
[1722269507353,5.3407,187.24,187.17,18.6992]
[1722269507650,5.3411,187.23,187.17,13.3565]
[1722269508432,22.7203,187.27,187.17,13.3565]
[1722269508746,22.7203,187.27,187.15,15.7114]
[1722269508747,59.34,187.25,187.15,15.7114]
[1722269508929,0.17,187.24,187.15,15.7114]
[1722269509639,5.3427,187.17,187.1,5.3447]
[1722269510553,27.23,187.19,187.1,13.3611]
[1722269511032,5.3425,187.18,187.11,5.3444]
[1722269511457,5.3427,187.17,187.1,18.7057]
[1722269511829,5.3427,187.17,187.11,5.3444]
[1722269512140,5.3424,187.18,187.11,5.3444]
[1722269512455,5.3427,187.17,187.1,18.7057]
[1722269512756,27.23,187.19,187.12,5.344]
[1722269513358,32.5724,187.19,187.12,5.344]
[1722269513534,5.3425,187.18,187.11,5.3443]
[1722269514465,5.3425,187.18,187.12,5.3441]
[1722269514764,27.23,187.22,187.15,5.3432]
[1722269514966,2.16350124,187.24,187.15,13.3582]
[1722269515263,27.23,187.25,187.16,45.0]
[1722269515558,5.3415,187.21,187.15,13.3582]
[1722269516439,27.23,187.24,187.15,13.3582]
[1722269516751,5.3413,187.22,187.15,18.7014]
[1722269516955,32.5709,187.24,187.15,13.3582]
[1722269517151,32.5709,187.24,187.17,5.3425]
[1722269517359,5.3409,187.24,187.15,13.3582]
[1722269517541,5.3405,187.25,187.18,5.3421]
[1722269518071,5.3407,187.24,187.17,13.3563]
[1722269518361,5.3412,187.23,187.17,13.3563]
[1722269518561,5.3412,187.23,187.07,15.7949]
[1722269518562,5.3413,187.22,187.15,5.3432]
[1722269520200,5.3409,187.24,187.16,5.3428]
[1722269520673,5.3411,187.23,187.16,5.3428]
[1722269520969,32.11,187.25,187.14,18.702]
[1722269521140,0.17,187.24,187.14,13.3587]
[1722269521534,0.17,187.24,187.13,5.3436]
[1722269521740,5.3418,187.2,187.13,5.3436]
[1722269521950,5.3421,187.19,187.13,5.3436]
[1722269522155,5.3425,187.18,187.12,5.3441]
[1722269522846,5.3422,187.19,187.12,5.3441]
[1722269523041,5.3418,187.2,187.11,13.3609]
[1722269523256,27.23,187.22,187.14,5.3435]
[1722269523257,5.3416,187.21,187.14,5.3435]
[1722269523468,0.17,187.24,187.13,13.359]
[1722269523766,59.34,187.25,187.16,5.3429]
[1722269523767,5.3412,187.23,187.16,5.3429]
[1722269523982,5.3412,187.23,187.17,5.3427]
[1722269524482,32.11,187.29,187.21,5.3414]
[1722269524787,32.11,187.29,187.16,0.17]
[1722269524788,5.3398,187.27,187.2,18.6963]
[1722269525353,32.11,187.29,187.17,13.3567]
[1722269525550,27.23,187.27,187.17,13.3567]
[1722269526178,5.341,187.24,187.17,18.6994]
[1722269526359,5.341,187.24,187.15,15.5397]
[1722269526360,27.23,187.24,187.15,15.5397]
[1722269526554,27.23,187.24,187.16,50.3429]
[1722269527163,5.3413,187.22,187.15,15.5397]
[1722269527889,5.3416,187.21,187.15,15.5397]
[1722269528055,27.23,187.24,187.15,15.5397]
[1722269528250,0.17,187.23,187.15,15.5397]
[1722269528451,27.23,187.21,187.15,15.5397]
[1722269528681,32.5715,187.21,187.15,15.5397]
[1722269528858,32.5715,187.21,187.15,20.8829]
[1722269529259,32.5715,187.21,187.15,15.5397]
[1722269531884,32.5715,187.21,187.14,18.7024]
[1722269532087,5.3421,187.19,187.12,5.344]
[1722269532568,5.3421,187.19,187.11,28.574]
[1722269532569,32.5716,187.21,187.13,13.359]
[1722269532889,27.23,187.21,187.13,13.359]
[1722269533186,27.23,187.21,187.13,18.7026]
[1722269533383,5.3421,187.19,187.13,13.359]
[1722269533969,5.3424,187.18,187.12,5.3441]
[1722269534274,5.3435,187.15,187.11,15.2131]
[1722269534465,27.23,187.18,187.11,15.2131]
[1722269534787,5.343,187.16,187.11,15.2131]
[1722269535587,5.3433,187.15,187.08,5.3452]
[1722269535780,5.3433,187.15,187.09,5.3449]
[1722269536170,5.343,187.16,187.09,5.3449]
[1722269536489,5.3433,187.15,187.09,5.3449]
[1722269537381,5.3436,187.14,187.07,18.7091]
[1722269538185,5.3433,187.15,187.08,5.3452]
[1722269538395,32.11,187.17,187.09,5.3449]
[1722269539365,32.11,187.17,187.08,5.3452]
[1722269539890,5.3435,187.15,187.08,5.3452]
[1722269540265,5.3433,187.15,187.07,13.3638]
[1722269540769,5.3433,187.15,187.08,5.3452]
[1722269540970,5.3436,187.14,187.07,18.7093]
[1722269543399,5.3433,187.15,187.08,5.3452]
[1722269543689,32.11,187.17,187.07,18.7093]
[1722269543690,5.3436,187.14,187.07,18.7093]
[1722269544680,5.3439,187.13,187.07,13.3638]
[1722269544865,5.3439,187.13,187.07,18.7093]
[1722269545063,5.3436,187.14,187.07,18.7093]
[1722269545400,5.3439,187.13,187.07,13.3638]
[1722269546191,5.3436,187.14,187.07,18.7092]
[1722269546513,5.3421,187.19,187.13,5.3436]
[1722269546804,5.3424,187.18,187.11,13.3605]
[1722269546974,29.40005502,187.21,187.08,45.17]
[1722269546975,29.40005502,187.21,187.08,58.363]
[1722269547174,5.3433,187.15,187.08,63.7081]
[1722269547405,5.3433,187.15,187.09,5.3449]
[1722269547911,5.343,187.16,187.09,5.3449]
[1722269548076,5.3434,187.15,187.08,58.363]
[1722269548270,5.3434,187.15,187.08,63.708]
[1722269548469,40.5884,187.15,187.06,15.3646]
[1722269548675,5.3444,187.12,187.06,20.7104]
[1722269548907,27.23,187.15,187.07,5.3455]
[1722269549200,5.3435,187.15,187.08,5.3453]
[1722269549499,5.3436,187.14,187.08,5.3453]
[1722269549891,5.3436,187.14,187.07,5.3455]
[1722269551589,32.573,187.16,187.09,13.3624]
[1722269551790,59.34,187.16,187.06,15.3646]
[1722269552014,5.3438,187.14,187.07,5.3453]
[1722269552379,5.3438,187.14,187.08,1.06892138]
[1722269552889,5.3439,187.13,187.06,20.7104]
[1722269553086,27.23,187.13,187.06,15.3646]
[1722269553306,5.3447,187.1,187.06,15.3646]
[1722269553599,27.23,187.13,187.04,0.7757583]
[1722269553600,72.7003,187.13,187.04,0.7757583]
[1722269553796,27.23,187.1,187.04,0.7757583]
[1722269554184,5.3453,187.08,187.04,0.7757583]
[1722269554692,5.345,187.09,187.04,0.7757583]
[1722269556485,0.17,187.12,187.04,0.7757583]
[1722269556690,0.17,187.12,187.05,5.3459]
[1722269556691,5.3442,187.12,187.05,5.3459]